[Event "Early-Titled-Tuesday-Blitz-May-14-2024"]
[Site "Chess.com"]
[Date "2024.05.14"]
[Round "6"]
[White "SargissyanSargis"]
[Black "Szachulec75"]
[Result "1-0"]
[WhiteElo "2434"]
[BlackElo "2138"]
[TimeControl "180+1"]
[EndTime "9:03:57 PDT"]
[Termination "SargissyanSargis won by checkmate"]

1. e4 {[%clk 0:03:00.9]} 1... d6 {[%clk 0:02:58.8]} 2. d4 {[%clk 0:03:00.5]}
2... Nf6 {[%clk 0:02:59.2]} 3. Nc3 {[%clk 0:03:00.9]} 3... c6 {[%clk 0:02:59.1]}
4. f4 {[%clk 0:02:59.8]} 4... Qb6 {[%clk 0:02:59]} 5. Nf3 {[%clk 0:02:59.5]}
5... Bg4 {[%clk 0:02:57.8]} 6. e5 {[%clk 0:02:58.8]} 6... Nd5 {[%clk 0:02:56.7]}
7. Nxd5 {[%clk 0:02:57.9]} 7... cxd5 {[%clk 0:02:57]} 8. c3 {[%clk 0:02:57.3]}
8... e6 {[%clk 0:02:56.6]} 9. h3 {[%clk 0:02:56.6]} 9... Bf5 {[%clk 0:02:52.3]}
10. Bd3 {[%clk 0:02:54.1]} 10... Be4 {[%clk 0:02:50]} 11. O-O {[%clk 0:02:52.9]}
11... Nc6 {[%clk 0:02:43.5]} 12. Ng5 {[%clk 0:02:53.5]} 12... Bxd3 {[%clk
0:02:30.6]} 13. Qxd3 {[%clk 0:02:53.1]} 13... h6 {[%clk 0:02:31.2]} 14. Nxf7
{[%clk 0:02:46.2]} 14... Kxf7 {[%clk 0:02:29.5]} 15. f5 {[%clk 0:02:46.3]} 15...
dxe5 {[%clk 0:02:19.9]} 16. fxe6+ {[%clk 0:02:46.2]} 16... Kg8 {[%clk
0:02:19.1]} 17. Qg6 {[%clk 0:02:35.8]} 17... Ne7 {[%clk 0:02:10]} 18. Qf7+
{[%clk 0:02:33.1]} 18... Kh7 {[%clk 0:02:10.5]} 19. Rf6 {[%clk 0:02:24.3]} 19...
Ng8 {[%clk 0:01:57]} 20. Qg6# {[%clk 0:02:21.7]} 1-0

[Event "Early-Titled-Tuesday-Blitz-May-14-2024"]
[Site "Chess.com"]
[Date "2024.05.14"]
[Round "6"]
[White "Szparu"]
[Black "Arhan_Anand"]
[Result "1-0"]
[WhiteElo "2859"]
[BlackElo "2637"]
[TimeControl "180+1"]
[EndTime "9:04:32 PDT"]
[Termination "Szparu won by resignation"]

1. e4 {[%clk 0:03:00.9]} 1... c5 {[%clk 0:02:59.8]} 2. c3 {[%clk 0:03:00.7]}
2... d5 {[%clk 0:02:58.8]} 3. exd5 {[%clk 0:03:01.2]} 3... Nf6 {[%clk
0:02:59.2]} 4. d4 {[%clk 0:03:01.4]} 4... cxd4 {[%clk 0:02:57.7]} 5. Nf3 {[%clk
0:03:02.1]} 5... Nxd5 {[%clk 0:02:55.4]} 6. Nxd4 {[%clk 0:03:02.1]} 6... e6
{[%clk 0:02:55.2]} 7. g3 {[%clk 0:03:02.4]} 7... Be7 {[%clk 0:02:54.9]} 8. Bg2
{[%clk 0:03:03]} 8... O-O {[%clk 0:02:54.9]} 9. O-O {[%clk 0:03:03.7]} 9... Nb6
{[%clk 0:02:50.3]} 10. Qe2 {[%clk 0:03:01.6]} 10... N8d7 {[%clk 0:02:49.1]} 11.
Rd1 {[%clk 0:03:01.4]} 11... a6 {[%clk 0:02:46.6]} 12. Nd2 {[%clk 0:02:57]}
12... Qc7 {[%clk 0:02:46.1]} 13. N2f3 {[%clk 0:02:55.7]} 13... e5 {[%clk
0:02:42.6]} 14. Nf5 {[%clk 0:02:55.4]} 14... Bf6 {[%clk 0:02:42.8]} 15. Nd6
{[%clk 0:02:48.6]} 15... h6 {[%clk 0:02:26.7]} 16. Be3 {[%clk 0:02:45.3]} 16...
Nc5 {[%clk 0:02:25.2]} 17. Nd2 {[%clk 0:02:27.7]} 17... Be6 {[%clk 0:02:02.8]}
18. Bxc5 {[%clk 0:02:26.7]} 18... Qxc5 {[%clk 0:02:03.7]} 19. N2e4 {[%clk
0:02:27]} 19... Qc7 {[%clk 0:02:00.4]} 20. Nxf6+ {[%clk 0:02:27]} 20... gxf6
{[%clk 0:02:01.3]} 21. Qh5 {[%clk 0:02:26.7]} 21... Kg7 {[%clk 0:01:59.7]} 22.
Be4 {[%clk 0:02:23]} 22... Nc4 {[%clk 0:01:56.9]} 23. Nf5+ {[%clk 0:02:15.4]}
23... Bxf5 {[%clk 0:01:56.8]} 24. Qxf5 {[%clk 0:02:16.1]} 24... Rh8 {[%clk
0:01:51.6]} 25. Rd7 {[%clk 0:02:16.2]} 1-0

[Event "Early-Titled-Tuesday-Blitz-May-14-2024"]
[Site "Chess.com"]
[Date "2024.05.14"]
[Round "6"]
[White "Sosat98"]
[Black "kuchma777"]
[Result "1-0"]
[WhiteElo "2765"]
[BlackElo "2534"]
[TimeControl "180+1"]
[EndTime "9:04:34 PDT"]
[Termination "Sosat98 won by resignation"]

1. e4 {[%clk 0:03:00.9]} 1... c6 {[%clk 0:02:59.5]} 2. Nf3 {[%clk 0:02:57]} 2...
d5 {[%clk 0:03:00.4]} 3. Nc3 {[%clk 0:02:56.6]} 3... dxe4 {[%clk 0:03:00.4]} 4.
Nxe4 {[%clk 0:02:56.7]} 4... Nf6 {[%clk 0:03:01.3]} 5. Qe2 {[%clk 0:02:56.1]}
5... Nxe4 {[%clk 0:02:58.7]} 6. Qxe4 {[%clk 0:02:57]} 6... Nd7 {[%clk
0:02:59.1]} 7. Bc4 {[%clk 0:02:55.3]} 7... Nf6 {[%clk 0:02:59.6]} 8. Ne5 {[%clk
0:02:55.5]} 8... e6 {[%clk 0:03:00.3]} 9. Qe2 {[%clk 0:02:55.5]} 9... b5 {[%clk
0:03:00.4]} 10. Bb3 {[%clk 0:02:55.6]} 10... Qc7 {[%clk 0:03:00.3]} 11. a4
{[%clk 0:02:55.4]} 11... b4 {[%clk 0:03:00.4]} 12. d4 {[%clk 0:02:48.1]} 12...
a5 {[%clk 0:03:00.3]} 13. O-O {[%clk 0:02:47.5]} 13... Bd6 {[%clk 0:02:58]} 14.
Bf4 {[%clk 0:02:43.9]} 14... Ba6 {[%clk 0:02:58.1]} 15. Bc4 {[%clk 0:02:42.2]}
15... Bb7 {[%clk 0:02:52.5]} 16. Nxf7 {[%clk 0:02:27.3]} 16... Bxf4 {[%clk
0:02:47.8]} 17. Qxe6+ {[%clk 0:02:24.8]} 17... Qe7 {[%clk 0:02:44]} 18. Qf5
{[%clk 0:02:05.8]} 18... Bd2 {[%clk 0:02:12]} 19. Nxh8 {[%clk 0:01:59.1]} 19...
Bc8 {[%clk 0:02:11.8]} 20. Qd3 {[%clk 0:01:53.1]} 20... Ne4 {[%clk 0:02:08.7]}
21. f3 {[%clk 0:01:50.2]} 1-0

[Event "Early-Titled-Tuesday-Blitz-May-14-2024"]
[Site "Chess.com"]
[Date "2024.05.14"]
[Round "6"]
[White "David_Arutinian"]
[Black "hongnhung1234"]
[Result "1-0"]
[WhiteElo "2842"]
[BlackElo "2570"]
[TimeControl "180+1"]
[EndTime "9:05:02 PDT"]
[Termination "David_Arutinian won by resignation"]

1. Nf3 {[%clk 0:03:00.9]} 1... f5 {[%clk 0:02:58.1]} 2. c4 {[%clk 0:03:00.5]}
2... Nf6 {[%clk 0:02:58.2]} 3. Nc3 {[%clk 0:03:00.9]} 3... d6 {[%clk 0:02:58.5]}
4. d3 {[%clk 0:03:01.5]} 4... e5 {[%clk 0:02:58.2]} 5. g3 {[%clk 0:03:01.7]}
5... g6 {[%clk 0:02:57.8]} 6. Bg2 {[%clk 0:03:02.4]} 6... Bg7 {[%clk 0:02:57.7]}
7. O-O {[%clk 0:03:03]} 7... O-O {[%clk 0:02:58.1]} 8. Rb1 {[%clk 0:03:03.6]}
8... Nc6 {[%clk 0:02:56.4]} 9. b4 {[%clk 0:03:03.7]} 9... h6 {[%clk 0:02:56.1]}
10. b5 {[%clk 0:03:04]} 10... Ne7 {[%clk 0:02:56.5]} 11. a4 {[%clk 0:03:04.6]}
11... g5 {[%clk 0:02:55.7]} 12. Ba3 {[%clk 0:03:05.2]} 12... f4 {[%clk
0:02:52.7]} 13. c5 {[%clk 0:03:05.6]} 13... Nf5 {[%clk 0:02:45]} 14. cxd6 {[%clk
0:02:57.9]} 14... cxd6 {[%clk 0:02:43.3]} 15. Nd2 {[%clk 0:02:56.1]} 15... fxg3
{[%clk 0:02:34.2]} 16. hxg3 {[%clk 0:02:55.5]} 16... Qe8 {[%clk 0:02:31.4]} 17.
e3 {[%clk 0:02:40.7]} 17... Qe7 {[%clk 0:02:16.6]} 18. Nde4 {[%clk 0:02:35.7]}
18... Be6 {[%clk 0:02:08]} 19. Nxf6+ {[%clk 0:02:28.5]} 19... Bxf6 {[%clk
0:02:08.9]} 20. Nd5 {[%clk 0:02:28]} 20... Qd7 {[%clk 0:02:00]} 21. Rc1 {[%clk
0:02:21.1]} 21... Rac8 {[%clk 0:01:58.7]} 22. Rxc8 {[%clk 0:02:09.4]} 22... Qxc8
{[%clk 0:01:59.6]} 23. Qb1 {[%clk 0:01:45.6]} 23... Rd8 {[%clk 0:01:50.1]} 24.
Nxf6+ {[%clk 0:01:42]} 1-0

[Event "Early-Titled-Tuesday-Blitz-May-14-2024"]
[Site "Chess.com"]
[Date "2024.05.14"]
[Round "6"]
[White "GelmanAlexander"]
[Black "vladislavkovalev"]
[Result "0-1"]
[WhiteElo "2663"]
[BlackElo "2856"]
[TimeControl "180+1"]
[EndTime "9:05:18 PDT"]
[Termination "vladislavkovalev won by resignation"]

1. c4 {[%clk 0:03:00.9]} 1... g6 {[%clk 0:02:59.4]} 2. Nf3 {[%clk 0:02:59]} 2...
Bg7 {[%clk 0:03:00.1]} 3. e3 {[%clk 0:02:59.3]} 3... d6 {[%clk 0:03:00.5]} 4.
Be2 {[%clk 0:02:59.2]} 4... e5 {[%clk 0:03:01]} 5. d3 {[%clk 0:02:59.3]} 5... f5
{[%clk 0:03:01.5]} 6. Nc3 {[%clk 0:02:59.2]} 6... Nf6 {[%clk 0:03:02.2]} 7. Qc2
{[%clk 0:02:58.4]} 7... O-O {[%clk 0:03:02.5]} 8. a3 {[%clk 0:02:58.4]} 8... c5
{[%clk 0:03:02.2]} 9. O-O {[%clk 0:02:51.8]} 9... Nc6 {[%clk 0:03:02.5]} 10. Rb1
{[%clk 0:02:51.3]} 10... a5 {[%clk 0:03:02.6]} 11. b3 {[%clk 0:02:51.3]} 11...
h6 {[%clk 0:03:01.3]} 12. Nd2 {[%clk 0:02:46.9]} 12... g5 {[%clk 0:03:00.9]} 13.
h3 {[%clk 0:02:47]} 13... h5 {[%clk 0:02:54]} 14. Nd5 {[%clk 0:02:46.5]} 14...
g4 {[%clk 0:02:53.3]} 15. hxg4 {[%clk 0:02:25.8]} 15... hxg4 {[%clk 0:02:52.5]}
16. Bb2 {[%clk 0:02:19.8]} 16... Be6 {[%clk 0:02:49.4]} 17. Nxf6+ {[%clk
0:02:08.5]} 17... Qxf6 {[%clk 0:02:50.3]} 18. g3 {[%clk 0:02:09]} 18... Qh6
{[%clk 0:02:50.1]} 19. Rfe1 {[%clk 0:01:50.1]} 19... f4 {[%clk 0:02:29.9]} 20.
exf4 {[%clk 0:01:45]} 20... exf4 {[%clk 0:02:30.8]} 21. Bf1 {[%clk 0:01:42]}
21... Nd4 {[%clk 0:02:23.2]} 22. Bxd4 {[%clk 0:01:40.6]} 22... Bxd4 {[%clk
0:02:24.1]} 23. Rxe6 {[%clk 0:01:36.5]} 23... Qxe6 {[%clk 0:02:23.5]} 24. Ne4
{[%clk 0:01:26.4]} 24... fxg3 {[%clk 0:02:13.4]} 25. Nxg3 {[%clk 0:01:24.2]}
25... Rxf2 {[%clk 0:02:08.9]} 26. Qxf2 {[%clk 0:01:23.5]} 26... Bxf2+ {[%clk
0:02:09.8]} 27. Kxf2 {[%clk 0:01:24.3]} 27... Rf8+ {[%clk 0:02:10.4]} 28. Kg2
{[%clk 0:01:24.6]} 28... Qe3 {[%clk 0:02:08.8]} 29. Rb2 {[%clk 0:01:23.6]} 0-1

[Event "Early-Titled-Tuesday-Blitz-May-14-2024"]
[Site "Chess.com"]
[Date "2024.05.14"]
[Round "6"]
[White "santosalberto1987"]
[Black "ilqar_74"]
[Result "1-0"]
[WhiteElo "2614"]
[BlackElo "2833"]
[TimeControl "180+1"]
[EndTime "9:05:21 PDT"]
[Termination "santosalberto1987 won by resignation"]

1. e4 {[%clk 0:03:00.9]} 1... c5 {[%clk 0:02:25]} 2. Nf3 {[%clk 0:03:00.5]} 2...
d6 {[%clk 0:02:24.6]} 3. Bb5+ {[%clk 0:03:00.1]} 3... Nd7 {[%clk 0:02:24.5]} 4.
d4 {[%clk 0:03:00.2]} 4... cxd4 {[%clk 0:02:23.6]} 5. Qxd4 {[%clk 0:03:00.8]}
5... a6 {[%clk 0:02:23.7]} 6. Bxd7+ {[%clk 0:03:00.7]} 6... Bxd7 {[%clk
0:02:24.6]} 7. Nc3 {[%clk 0:03:01.2]} 7... Nf6 {[%clk 0:02:24.7]} 8. Bg5 {[%clk
0:03:01]} 8... e6 {[%clk 0:02:25.1]} 9. O-O-O {[%clk 0:03:00.8]} 9... Qc7 {[%clk
0:02:23.1]} 10. e5 {[%clk 0:02:56.4]} 10... dxe5 {[%clk 0:02:22.8]} 11. Nxe5
{[%clk 0:02:57.3]} 11... Bc5 {[%clk 0:02:14.9]} 12. Qf4 {[%clk 0:02:52.5]} 12...
Bd6 {[%clk 0:01:49.9]} 13. Rxd6 {[%clk 0:02:40.9]} 13... Qxd6 {[%clk 0:01:50]}
14. Rd1 {[%clk 0:02:40.9]} 14... Qb8 {[%clk 0:00:48.1]} 15. Bxf6 {[%clk
0:02:28]} 15... gxf6 {[%clk 0:00:42]} 16. Qxf6 {[%clk 0:02:27.3]} 16... Rf8
{[%clk 0:00:42.3]} 17. Nxd7 {[%clk 0:02:25.3]} 17... Qd8 {[%clk 0:00:40.3]} 18.
Qxd8+ {[%clk 0:02:22.9]} 1-0

[Event "Early-Titled-Tuesday-Blitz-May-14-2024"]
[Site "Chess.com"]
[Date "2024.05.14"]
[Round "6"]
[White "Acva-Alenok"]
[Black "MVM2008"]
[Result "1-0"]
[WhiteElo "2375"]
[BlackElo "2515"]
[TimeControl "180+1"]
[EndTime "9:05:28 PDT"]
[Termination "Acva-Alenok won by resignation"]

1. d4 {[%clk 0:03:00.9]} 1... Nf6 {[%clk 0:02:46.4]} 2. c4 {[%clk 0:02:59.7]}
2... e6 {[%clk 0:02:46.3]} 3. Nf3 {[%clk 0:02:59.4]} 3... b6 {[%clk 0:02:46.4]}
4. g3 {[%clk 0:02:59.4]} 4... Bb7 {[%clk 0:02:47.3]} 5. Bg2 {[%clk 0:02:59.4]}
5... Ne4 {[%clk 0:02:47.7]} 6. O-O {[%clk 0:02:53.3]} 6... f5 {[%clk 0:02:47.5]}
7. d5 {[%clk 0:02:42]} 7... exd5 {[%clk 0:02:42.6]} 8. cxd5 {[%clk 0:02:40.3]}
8... Bc5 {[%clk 0:02:43.2]} 9. e3 {[%clk 0:01:46.5]} 9... O-O {[%clk 0:02:40.5]}
10. a3 {[%clk 0:01:45.7]} 10... a5 {[%clk 0:02:39.6]} 11. Nc3 {[%clk 0:01:31.6]}
11... Qe7 {[%clk 0:02:23.3]} 12. Nd4 {[%clk 0:01:17.8]} 12... Bd6 {[%clk
0:02:06.5]} 13. Nxf5 {[%clk 0:01:12.1]} 13... Rxf5 {[%clk 0:02:05.5]} 14. Bxe4
{[%clk 0:01:10.5]} 14... Re5 {[%clk 0:02:04.6]} 15. Bg2 {[%clk 0:01:05.2]} 15...
Na6 {[%clk 0:02:04.4]} 16. f4 {[%clk 0:00:58]} 16... Rxe3 {[%clk 0:02:01.8]} 17.
Bxe3 {[%clk 0:00:57.4]} 17... Qxe3+ {[%clk 0:02:02.7]} 18. Kh1 {[%clk
0:00:57.3]} 18... Bc5 {[%clk 0:02:00.4]} 19. Re1 {[%clk 0:00:53.7]} 1-0

[Event "Early-Titled-Tuesday-Blitz-May-14-2024"]
[Site "Chess.com"]
[Date "2024.05.14"]
[Round "6"]
[White "Dolphin_2010"]
[Black "Cheer_Down"]
[Result "1-0"]
[WhiteElo "2627"]
[BlackElo "2452"]
[TimeControl "180+1"]
[EndTime "9:05:34 PDT"]
[Termination "Dolphin_2010 won by resignation"]

1. d4 {[%clk 0:02:56.9]} 1... d5 {[%clk 0:02:59.4]} 2. c4 {[%clk 0:02:55.9]}
2... e6 {[%clk 0:02:59.3]} 3. Nc3 {[%clk 0:02:55.9]} 3... Nf6 {[%clk 0:02:59.1]}
4. Bg5 {[%clk 0:02:54.5]} 4... Nbd7 {[%clk 0:02:56.2]} 5. e3 {[%clk 0:02:54]}
5... h6 {[%clk 0:02:55.2]} 6. Bf4 {[%clk 0:02:43.9]} 6... Bb4 {[%clk 0:02:41.7]}
7. Rc1 {[%clk 0:02:41.9]} 7... c5 {[%clk 0:02:38.1]} 8. a3 {[%clk 0:02:32]} 8...
Bxc3+ {[%clk 0:02:35.6]} 9. Rxc3 {[%clk 0:02:32.2]} 9... cxd4 {[%clk 0:02:32.2]}
10. Qxd4 {[%clk 0:02:27.8]} 10... O-O {[%clk 0:02:29.5]} 11. Bd6 {[%clk
0:02:09.7]} 11... e5 {[%clk 0:02:24.1]} 12. Bxe5 {[%clk 0:02:04]} 12... Nxe5
{[%clk 0:02:24.1]} 13. Qxe5 {[%clk 0:02:04.9]} 13... Re8 {[%clk 0:02:23.9]} 14.
Qd4 {[%clk 0:02:04.4]} 14... Re4 {[%clk 0:02:23]} 15. Qd2 {[%clk 0:01:59.2]}
15... d4 {[%clk 0:02:16.5]} 16. Nf3 {[%clk 0:01:58]} 16... Bg4 {[%clk
0:02:13.6]} 17. Nxd4 {[%clk 0:01:53.6]} 17... Re7 {[%clk 0:01:59.1]} 18. Bd3
{[%clk 0:01:39.3]} 18... Qb6 {[%clk 0:01:38.6]} 19. c5 {[%clk 0:01:30.8]} 19...
Qc7 {[%clk 0:01:35.4]} 20. O-O {[%clk 0:01:29]} 20... Rd8 {[%clk 0:01:34.6]} 21.
h3 {[%clk 0:01:26.6]} 21... Bc8 {[%clk 0:01:33.5]} 22. Nb5 {[%clk 0:01:23.7]}
22... Qb8 {[%clk 0:01:31.7]} 23. Bh7+ {[%clk 0:01:21.5]} 23... Kxh7 {[%clk
0:01:29.7]} 24. Qxd8 {[%clk 0:01:22.4]} 1-0

[Event "Early-Titled-Tuesday-Blitz-May-14-2024"]
[Site "Chess.com"]
[Date "2024.05.14"]
[Round "6"]
[White "SuperJesus88"]
[Black "Crazy_girl99"]
[Result "1-0"]
[WhiteElo "2539"]
[BlackElo "2638"]
[TimeControl "180+1"]
[EndTime "9:05:38 PDT"]
[Termination "SuperJesus88 won by resignation"]

1. e4 {[%clk 0:03:00.9]} 1... e5 {[%clk 0:02:59]} 2. Nf3 {[%clk 0:03:01]} 2...
Nc6 {[%clk 0:02:59.3]} 3. Bb5 {[%clk 0:03:00.2]} 3... a6 {[%clk 0:02:59]} 4.
Bxc6 {[%clk 0:03:00.6]} 4... dxc6 {[%clk 0:02:59.1]} 5. d4 {[%clk 0:03:01.5]}
5... exd4 {[%clk 0:02:59.2]} 6. Qxd4 {[%clk 0:03:02.4]} 6... Qxd4 {[%clk
0:02:58.9]} 7. Nxd4 {[%clk 0:03:02.3]} 7... c5 {[%clk 0:02:59.3]} 8. Ne2 {[%clk
0:03:01.8]} 8... Bd7 {[%clk 0:02:59.5]} 9. f3 {[%clk 0:03:02.4]} 9... O-O-O
{[%clk 0:03:00]} 10. Nbc3 {[%clk 0:03:03]} 10... Ne7 {[%clk 0:02:59.7]} 11. Be3
{[%clk 0:03:03.1]} 11... Ng6 {[%clk 0:02:57.6]} 12. Kf2 {[%clk 0:03:03.4]} 12...
f6 {[%clk 0:02:58]} 13. h4 {[%clk 0:03:03.2]} 13... h5 {[%clk 0:02:56.3]} 14. g3
{[%clk 0:03:03.4]} 14... Bd6 {[%clk 0:02:56.3]} 15. Rhd1 {[%clk 0:03:03]} 15...
Rhf8 {[%clk 0:02:54.5]} 16. Nf4 {[%clk 0:03:03.2]} 16... Nxf4 {[%clk 0:02:51.5]}
17. Bxf4 {[%clk 0:03:03.4]} 17... Bxf4 {[%clk 0:02:47.8]} 18. gxf4 {[%clk
0:03:03.7]} 18... Rg8 {[%clk 0:02:36.5]} 19. Ke3 {[%clk 0:03:01.2]} 19... g5
{[%clk 0:02:36.3]} 20. hxg5 {[%clk 0:03:01]} 20... fxg5 {[%clk 0:02:36.9]} 21.
fxg5 {[%clk 0:03:01.4]} 21... Rxg5 {[%clk 0:02:36.6]} 22. Rg1 {[%clk 0:03:01.9]}
22... Rdg8 {[%clk 0:02:35.7]} 23. Rxg5 {[%clk 0:03:02.2]} 23... Rxg5 {[%clk
0:02:36.6]} 24. Rh1 {[%clk 0:03:02.5]} 24... Be6 {[%clk 0:02:28]} 25. Ne2 {[%clk
0:02:56.8]} 25... b5 {[%clk 0:02:21.7]} 26. a3 {[%clk 0:02:56.4]} 26... b4
{[%clk 0:02:11.6]} 27. Rg1 {[%clk 0:02:55.8]} 27... Rxg1 {[%clk 0:02:00]} 28.
Nxg1 {[%clk 0:02:55.7]} 28... a5 {[%clk 0:02:00.7]} 29. f4 {[%clk 0:02:54.8]}
29... c4 {[%clk 0:01:56.7]} 30. c3 {[%clk 0:02:55.1]} 30... c5 {[%clk
0:01:55.8]} 31. f5 {[%clk 0:02:55.3]} 31... Bd7 {[%clk 0:01:45.4]} 32. Nf3
{[%clk 0:02:55.1]} 32... Kc7 {[%clk 0:01:40.5]} 33. Ne5 {[%clk 0:02:50.3]} 33...
Be8 {[%clk 0:01:38.6]} 34. f6 {[%clk 0:02:48.1]} 34... bxa3 {[%clk 0:01:29]} 35.
bxa3 {[%clk 0:02:46.8]} 35... Kb6 {[%clk 0:01:07.2]} 36. f7 {[%clk 0:02:44.8]}
36... Bxf7 {[%clk 0:01:07.6]} 37. Nxf7 {[%clk 0:02:45.5]} 37... Kb5 {[%clk
0:01:08.1]} 38. Ng5 {[%clk 0:02:37.9]} 38... Ka4 {[%clk 0:01:08.4]} 39. e5
{[%clk 0:02:38.4]} 39... Kxa3 {[%clk 0:01:07.9]} 40. e6 {[%clk 0:02:39.2]} 40...
Kb2 {[%clk 0:01:08.5]} 41. e7 {[%clk 0:02:40]} 41... a4 {[%clk 0:01:09.2]} 42.
e8=Q {[%clk 0:02:40.1]} 42... a3 {[%clk 0:01:09.8]} 43. Qb5+ {[%clk 0:02:31.8]}
43... Ka1 {[%clk 0:01:09.6]} 44. Qxc5 {[%clk 0:02:30.1]} 44... a2 {[%clk
0:01:10.2]} 45. Qxc4 {[%clk 0:02:30.5]} 45... h4 {[%clk 0:01:10.4]} 46. Qxh4
{[%clk 0:02:29.1]} 46... Kb2 {[%clk 0:01:10.1]} 47. Qf2+ {[%clk 0:02:29]} 47...
Ka1 {[%clk 0:01:10.7]} 48. Qxa2+ {[%clk 0:02:27.8]} 48... Kxa2 {[%clk
0:01:11.6]} 49. c4 {[%clk 0:02:28.1]} 1-0

[Event "Early-Titled-Tuesday-Blitz-May-14-2024"]
[Site "Chess.com"]
[Date "2024.05.14"]
[Round "6"]
[White "stamatolog13"]
[Black "romulocardoso"]
[Result "1-0"]
[WhiteElo "2563"]
[BlackElo "2309"]
[TimeControl "180+1"]
[EndTime "9:05:44 PDT"]
[Termination "stamatolog13 won by resignation"]

1. e4 {[%clk 0:02:59.3]} 1... c5 {[%clk 0:02:58.6]} 2. d4 {[%clk 0:02:59.7]}
2... cxd4 {[%clk 0:02:56.5]} 3. c3 {[%clk 0:02:59.6]} 3... dxc3 {[%clk
0:02:56.2]} 4. Nxc3 {[%clk 0:03:00.2]} 4... Nc6 {[%clk 0:02:56.3]} 5. Nf3 {[%clk
0:03:01.1]} 5... d6 {[%clk 0:02:55.5]} 6. Bc4 {[%clk 0:03:01.5]} 6... Nf6 {[%clk
0:02:54.8]} 7. e5 {[%clk 0:03:01.9]} 7... dxe5 {[%clk 0:02:36.1]} 8. Qxd8+
{[%clk 0:03:01.1]} 8... Nxd8 {[%clk 0:02:36.4]} 9. Nb5 {[%clk 0:03:00]} 9... Rb8
{[%clk 0:02:24.5]} 10. Nxe5 {[%clk 0:02:59.2]} 10... e6 {[%clk 0:02:18.9]} 11.
Nc7+ {[%clk 0:02:58]} 11... Ke7 {[%clk 0:02:19.3]} 12. Be3 {[%clk 0:02:58.4]}
12... b6 {[%clk 0:01:04.7]} 13. O-O-O {[%clk 0:02:50.8]} 13... Nd5 {[%clk
0:01:04.8]} 14. Bxd5 {[%clk 0:02:46.7]} 14... exd5 {[%clk 0:01:05.1]} 15. Nxd5+
{[%clk 0:02:47.2]} 15... Ke6 {[%clk 0:01:04.7]} 16. Rhe1 {[%clk 0:02:47.7]}
16... f6 {[%clk 0:00:57.3]} 17. Nc7+ {[%clk 0:02:42.3]} 17... Kxe5 {[%clk
0:00:50.6]} 18. Rxd8 {[%clk 0:02:38.9]} 18... Kf5 {[%clk 0:00:37.1]} 19. Bd2
{[%clk 0:02:34.6]} 19... g5 {[%clk 0:00:19.4]} 20. Ree8 {[%clk 0:02:33.5]} 20...
Bg7 {[%clk 0:00:16]} 21. Rxh8 {[%clk 0:02:32.1]} 21... Bxh8 {[%clk 0:00:16.9]}
22. Rxh8 {[%clk 0:02:32.5]} 1-0

[Event "Early-Titled-Tuesday-Blitz-May-14-2024"]
[Site "Chess.com"]
[Date "2024.05.14"]
[Round "6"]
[White "Khromkin"]
[Black "Dacean99"]
[Result "1-0"]
[WhiteElo "2404"]
[BlackElo "2589"]
[TimeControl "180+1"]
[EndTime "9:06:06 PDT"]
[Termination "Khromkin won by resignation"]

1. d4 {[%clk 0:02:59.6]} 1... d5 {[%clk 0:02:56.8]} 2. c4 {[%clk 0:02:59.5]}
2... dxc4 {[%clk 0:02:57.7]} 3. Nf3 {[%clk 0:02:58.5]} 3... Nf6 {[%clk
0:02:56.8]} 4. e3 {[%clk 0:02:58.5]} 4... e6 {[%clk 0:02:55.9]} 5. Bxc4 {[%clk
0:02:58.4]} 5... a6 {[%clk 0:02:56.8]} 6. O-O {[%clk 0:02:58.2]} 6... c5 {[%clk
0:02:57]} 7. Qe2 {[%clk 0:02:57]} 7... b5 {[%clk 0:02:55.8]} 8. Bb3 {[%clk
0:02:57.2]} 8... Bb7 {[%clk 0:02:55.9]} 9. a4 {[%clk 0:02:56.6]} 9... c4 {[%clk
0:02:55.5]} 10. Bc2 {[%clk 0:02:56.3]} 10... Nc6 {[%clk 0:02:55.7]} 11. Nbd2
{[%clk 0:02:30.3]} 11... Bd6 {[%clk 0:02:52.5]} 12. Ne4 {[%clk 0:02:19.5]} 12...
Nb4 {[%clk 0:02:46.5]} 13. Nxd6+ {[%clk 0:02:15.9]} 13... Qxd6 {[%clk
0:02:47.4]} 14. Bb1 {[%clk 0:02:16.1]} 14... Be4 {[%clk 0:02:44]} 15. Bxe4
{[%clk 0:02:10.2]} 15... Nxe4 {[%clk 0:02:44.9]} 16. axb5 {[%clk 0:02:08.1]}
16... Nd3 {[%clk 0:02:43.3]} 17. Ne5 {[%clk 0:01:47.6]} 17... Nxe5 {[%clk
0:02:35.5]} 18. dxe5 {[%clk 0:01:46.9]} 18... Qc5 {[%clk 0:02:33.6]} 19. bxa6
{[%clk 0:01:33.4]} 19... O-O {[%clk 0:02:31.7]} 20. f3 {[%clk 0:01:18.7]} 20...
Ng5 {[%clk 0:02:29.7]} 21. h4 {[%clk 0:01:18.6]} 21... f6 {[%clk 0:02:21.1]} 22.
hxg5 {[%clk 0:01:15.4]} 22... fxg5 {[%clk 0:02:22]} 23. Bd2 {[%clk 0:01:12.4]}
23... Qxe5 {[%clk 0:02:15.8]} 24. Bc3 {[%clk 0:01:11.6]} 24... Qb5 {[%clk
0:02:14.5]} 25. Rfd1 {[%clk 0:01:03.2]} 25... Rxa6 {[%clk 0:02:11.9]} 26. Rxa6
{[%clk 0:01:02.9]} 26... Qxa6 {[%clk 0:02:12.8]} 27. Rd7 {[%clk 0:01:02.5]}
27... Rf7 {[%clk 0:02:11.3]} 28. Qd2 {[%clk 0:00:57.4]} 28... Rxd7 {[%clk
0:01:52.4]} 29. Qxd7 {[%clk 0:00:56.4]} 29... e5 {[%clk 0:01:49.3]} 1-0